bitfinex/quotes_ETHUSD_20241123
["timestamp","ask_amount","ask_price","bid_price","bid_amount"]
[1732360305572,0.94044,3343.3,3342.9,0.05737014]
[1732360305882,0.2132003,3343.2,3342.6,0.2976]
[1732360306049,0.7837,3343.3,3342.6,0.2976]
[1732360306454,0.7837,3343.3,3342.7,0.05749112]
[1732360306873,0.7837,3343.3,3342.6,0.2976]
[1732360307059,0.7837,3343.3,3342.8,0.05743062]
[1732360307378,0.7837,3343.3,3342.6,0.2976]
[1732360307578,0.94224782,3343.3,3342.6,0.2976]
[1732360307764,0.94224782,3343.3,3342.7,0.05747048]
[1732360307963,0.94224782,3343.3,3342.6,0.2976]
[1732360308367,0.94224782,3343.3,3342.7,0.05747048]
[1732360308547,0.94224782,3343.3,3342.6,0.2976]
[1732360308746,0.94224782,3343.3,3342.8,0.05740999]
[1732360308945,0.1744026,3343.2,3342.6,0.2976]
[1732360309139,0.7837,3343.3,3342.9,0.05734951]
[1732360309390,0.7837,3343.3,3342.6,0.2976]
[1732360310188,0.7837,3343.3,3342.7,0.05747048]
[1732360311861,0.7837,3343.3,3342.6,0.2976]
[1732360312062,0.15854782,3343.2,3342.8,0.05583778]
[1732360312413,0.15854782,3343.2,3342.9,0.0558177]
[1732360312689,0.7837,3343.3,3342.6,0.2976]
[1732360312997,0.7837,3343.3,3342.7,0.05593859]
[1732360313352,0.7837,3343.3,3342.6,0.2976]
[1732360313698,0.94224782,3343.3,3342.7,0.05593859]
[1732360314990,0.94224782,3343.3,3342.6,0.2976]
[1732360315156,0.94224782,3343.3,3342.8,0.05587814]
[1732360315507,0.94224782,3343.3,3342.6,0.2976]
[1732360315786,0.94224782,3343.3,3342.7,0.05593859]
[1732360315989,0.1744026,3343.2,3342.7,0.05593859]
[1732360316302,0.1744026,3343.2,3342.8,0.05587604]
[1732360316656,0.1744026,3343.2,3342.6,0.2976]
[1732360316853,0.1744026,3343.2,3342.9,0.0558156]
[1732360317165,0.1744026,3343.2,3342.6,0.2976]
[1732360317370,0.1744026,3343.2,3343.0,0.0557148]
[1732360317599,0.1744026,3343.2,3342.6,0.2976]
[1732360318070,0.1744026,3343.2,3342.7,0.05593649]
[1732360318399,0.1744026,3343.2,3342.6,0.2976]
[1732360318599,0.1744026,3343.2,3342.8,0.05770094]
[1732360318907,0.1744026,3343.2,3342.6,0.2976]
[1732360319876,0.1744026,3343.2,3342.7,0.05593649]
[1732360320301,0.1744026,3343.2,3342.6,0.2976]
[1732360320810,0.1744026,3343.2,3342.7,0.05776144]
[1732360320991,0.1744026,3343.2,3342.6,0.2976]
[1732360321511,0.1744026,3343.2,3342.7,0.05589612]
[1732360321867,0.1744026,3343.2,3342.6,0.2976]
[1732360322270,0.1744026,3343.2,3342.7,0.05589612]
[1732360323575,0.1744026,3343.2,3342.6,0.2976]
[1732360323782,0.1744026,3343.2,3342.8,0.05758969]
[1732360324087,0.1744026,3343.2,3342.6,0.2976]
[1732360324476,0.1744026,3343.2,3342.7,0.05589612]
[1732360325685,0.20438076,3343.2,3342.7,0.05589612]
[1732360326490,0.02997816,3343.2,3342.7,0.05589612]
[1732360326814,0.7837,3343.3,3342.6,0.2976]
[1732360327976,0.7837,3343.3,3342.7,0.05535802]
[1732360328396,0.7837,3343.3,3342.6,0.2976]
[1732360328932,0.7837,3343.3,3342.7,0.0536856]
[1732360329088,0.94224782,3343.3,3342.7,0.0536856]
[1732360329270,0.94224782,3343.3,3342.6,0.2976]
[1732360329472,0.94224782,3343.3,3342.8,0.05529753]
[1732360329673,0.94224782,3343.3,3342.6,0.2976]
[1732360329898,0.7837,3343.3,3342.9,0.05352435]
[1732360330080,0.7837,3343.3,3342.6,0.2976]
[1732360330691,0.7837,3343.3,3342.7,0.0536856]
[1732360331298,0.02997816,3343.2,3342.7,0.0536856]
[1732360331619,0.83107816,3343.4,3342.7,0.2976]
[1732360331923,0.99136598,3343.4,3342.7,0.2976]
[1732360332094,0.99136598,3343.4,3342.8,0.05358479]
[1732360332788,0.99136598,3343.4,3342.4,0.2976]
[1732360333007,0.83107816,3343.4,3342.9,0.05352435]
[1732360333409,0.83107816,3343.4,3342.4,0.2976]
[1732360333575,0.83107816,3343.4,3343.0,0.05346391]
[1732360333780,0.83107816,3343.4,3342.4,0.2976]
[1732360334014,0.83107816,3343.4,3343.1,0.05344383]
[1732360334309,0.83107816,3343.4,3342.6,0.2976]
[1732360334712,0.83107816,3343.4,3342.7,0.0536856]
[1732360335304,0.83107816,3343.4,3342.4,0.2976]
[1732360335502,1.06412797,3343.4,3342.8,0.05525625]
[1732360335723,1.06412797,3343.4,3342.4,0.2976]
[1732360335952,1.06412797,3343.4,3342.9,0.05519576]
[1732360336103,1.06412797,3343.4,3342.4,0.2976]
[1732360336300,1.06412797,3343.4,3343.0,0.05346391]
[1732360336617,0.83107816,3343.4,3343.1,0.05340348]
[1732360336803,0.83107816,3343.4,3342.6,0.2976]
[1732360337316,0.83107816,3343.4,3342.7,0.35124523]
[1732360338341,0.83107816,3343.4,3342.8,0.2976]
[1732360338633,0.83107816,3343.4,3342.9,0.05352435]
[1732360339840,0.83107816,3343.4,3342.4,0.2976]
[1732360340132,0.83107816,3343.4,3343.0,0.05350427]
[1732360340343,0.83107816,3343.4,3342.4,0.2976]
[1732360340640,0.16028782,3343.3,3342.4,0.2976]
[1732360340808,0.83107816,3343.4,3342.5,0.05543774]
[1732360342006,0.7718,3343.5,3343.1,0.2976]
[1732360342200,0.9316732,3343.8,3343.1,0.2976]
[1732360342430,0.7557,3343.7,3343.2,0.05337972]
[1732360343445,0.81007816,3343.6,3343.2,0.05337972]
[1732360343744,0.81007816,3343.6,3343.0,0.2976]
[1732360344227,0.81007816,3343.6,3343.1,0.05506611]
[1732360344541,0.81007816,3343.6,3343.1,0.35266611]
[1732360345548,0.81007816,3343.6,3343.1,0.05506611]
[1732360345727,0.18860887,3343.5,3343.1,0.05506611]
[1732360345918,0.02997816,3343.4,3342.8,0.2976]
[1732360346113,0.8018,3343.3,3343.2,0.05332964]
[1732360346318,0.8018,3343.3,3342.5,0.2976]
[1732360346617,0.02997816,3343.2,3342.5,0.2976]
[1732360346799,0.8018,3343.3,3342.5,0.2976]
[1732360347438,0.8018,3343.3,3342.6,0.05536383]
[1732360347638,0.02997816,3343.2,3342.6,0.05536383]
[1732360347909,0.8018,3343.1,3342.6,0.05536383]
[1732360348133,0.02997816,3343.0,3342.6,0.05536383]
[1732360348333,0.02997816,3343.0,3342.8,0.2976]
[1732360348655,0.8018,3343.1,3342.9,0.05518235]
[1732360349842,0.8018,3343.1,3342.5,0.2976]
[1732360350047,0.8018,3343.1,3343.0,0.05512186]
[1732360350249,0.8018,3343.1,3342.5,0.2976]
[1732360350453,0.8018,3343.1,3343.0,0.05512186]
[1732360350604,0.8018,3343.1,3342.7,0.2976]
[1732360350953,0.8018,3343.1,3343.0,0.05512186]
[1732360351156,0.8018,3343.1,3342.7,0.2976]
[1732360351306,0.8018,3343.1,3343.0,0.05349086]
[1732360351507,0.8018,3343.1,3342.5,0.2976]
[1732360352014,0.02997816,3343.0,3342.6,0.05369227]
[1732360352333,0.8018,3343.1,3342.6,0.05369227]
[1732360352521,0.02997816,3343.0,3342.6,0.05369227]
[1732360352721,0.8018,3343.1,3342.6,0.05369227]
[1732360352933,0.02997816,3343.0,3342.6,0.05369227]
[1732360353233,0.7931,3342.9,3342.6,0.35129227]
[1732360353429,0.02997816,3342.8,3342.6,0.35129227]
[1732360354047,0.02997816,3342.8,3342.6,0.05369227]
[1732360354210,0.02997816,3342.8,3342.3,0.2976]
[1732360354411,0.02997816,3342.8,3342.7,0.05549501]
[1732360354712,0.02997816,3342.8,3342.3,0.2976]
[1732360354940,0.02997816,3342.8,3342.7,0.05363182]
[1732360355245,0.02997816,3342.8,3342.7,0.05367219]
[1732360355446,0.02997816,3342.8,3342.4,0.2976]
[1732360355610,0.7557,3343.7,3342.0,0.2976]
[1732360355611,0.7931,3342.7,3342.0,0.2976]
[1732360356748,0.7931,3342.5,3341.5,1.0522]
[1732360356935,0.7931,3342.3,3341.5,0.2976]
[1732360357139,0.82307816,3342.2,3341.5,0.2976]
[1732360357522,0.7931,3342.0,3340.9,0.35416874]
[1732360357758,0.7931,3341.8,3340.8,0.7546]
[1732360357973,0.7931,3341.8,3340.9,0.2976]
[1732360358252,0.7931,3341.8,3340.8,0.7546]
[1732360358969,0.7546,3341.7,3341.0,3.0]
[1732360359335,0.7931,3341.6,3341.0,3.0]
[1732360359734,0.7931,3341.6,3340.8,0.7546]
[1732360360276,0.7931,3341.6,3341.0,3.0]
[1732360360432,0.7931,3341.6,3340.8,0.7546]
[1732360360632,0.7931,3341.6,3341.0,3.0]
[1732360361260,0.7931,3341.6,3340.8,0.7546]
[1732360361495,0.7931,3341.6,3341.0,3.0]
[1732360361935,0.7931,3341.6,3341.1,0.04771064]
[1732360362368,0.7931,3341.6,3341.0,3.0]
[1732360362664,0.7931,3341.6,3341.1,0.04771011]
[1732360362873,0.7931,3341.6,3341.0,3.0]
[1732360363167,0.7931,3341.6,3341.2,0.04760739]
[1732360363344,0.7931,3341.6,3340.8,0.7546]
[1732360363345,0.7931,3341.6,3341.1,0.04770827]
[1732360363542,0.7931,3341.6,3341.3,0.04754689]
[1732360363734,0.94787,3341.6,3341.2,0.04760739]
[1732360364072,0.94787,3341.6,3341.3,0.04754689]
[1732360364236,0.94787,3341.6,3340.6,0.2976]
[1732360364237,0.7931,3341.6,3340.6,0.2976]
[1732360364435,0.7931,3341.6,3341.4,0.04752677]
[1732360364670,0.7931,3341.6,3341.0,3.0]
[1732360364867,0.7931,3341.6,3341.5,0.0474259]
[1732360365044,0.7931,3341.6,3341.0,3.0]
[1732360365231,0.7931,3341.6,3341.5,0.04742906]
[1732360365435,0.7931,3341.6,3340.9,0.758]
[1732360365672,0.7931,3341.6,3341.5,0.04746944]
[1732360365854,0.7931,3341.6,3341.0,3.0]
[1732360366056,0.7931,3341.6,3341.5,0.04746944]
[1732360366260,0.7931,3341.6,3341.0,3.0]
[1732360366471,0.7931,3341.6,3341.5,0.04744925]
[1732360366759,0.7931,3341.6,3341.0,3.0]
[1732360367315,0.7931,3341.6,3341.1,0.04767105]
[1732360367746,0.7931,3341.6,3341.0,3.0]
[1732360368069,0.7931,3341.6,3341.1,0.04770775]
[1732360368746,0.7931,3341.6,3340.9,0.758]
[1732360368943,0.7931,3341.6,3341.2,0.04760686]
[1732360369167,0.7931,3341.6,3340.9,0.758]
[1732360369333,0.7931,3341.6,3341.3,0.04941064]
[1732360369535,0.7931,3341.6,3341.0,3.0]
[1732360369743,0.7931,3341.6,3341.4,0.0493905]
[1732360370071,0.7931,3341.6,3341.5,0.04930797]
[1732360370282,0.7931,3341.6,3341.0,3.0]
[1732360370567,0.7931,3341.6,3341.5,0.04930797]
[1732360370769,0.7931,3341.6,3341.0,3.0]
[1732360371249,0.7931,3341.6,3341.1,0.04955018]
[1732360372490,0.7931,3341.6,3340.9,0.758]
[1732360372637,0.7931,3341.6,3341.2,0.04948963]
[1732360372853,0.7931,3341.6,3340.9,0.758]
[1732360373150,0.7931,3341.6,3341.3,0.04946949]
[1732360373351,0.7931,3341.6,3341.0,3.0]
[1732360373855,0.7931,3341.6,3341.1,0.0495906]
[1732360374169,0.7931,3341.6,3341.0,3.0]
[1732360374388,0.7931,3341.6,3341.2,0.0495506]
[1732360374682,0.7931,3341.6,3341.3,0.04949004]
[1732360374891,0.7931,3341.6,3341.0,3.0]
[1732360375076,0.7931,3341.6,3341.4,0.04940928]
[1732360375386,0.7931,3341.6,3341.0,3.0]
[1732360375586,0.7931,3341.6,3341.5,0.04932853]
[1732360375752,0.7931,3341.6,3341.0,3.0]
[1732360375954,0.7931,3341.6,3341.5,0.04936894]
[1732360376193,0.7931,3341.6,3340.9,0.758]
[1732360376378,0.7931,3341.6,3341.5,0.04936894]
[1732360376560,0.7931,3341.6,3340.6,1.1085]
[1732360377051,0.7931,3341.6,3341.0,3.0]
[1732360377563,0.7931,3341.6,3341.1,0.04961116]
[1732360378346,0.7931,3341.6,3340.8,3.0]
[1732360378586,0.7931,3341.6,3341.2,0.04953039]
[1732360378757,0.81657816,3341.5,3340.6,0.8109]
[1732360378946,0.81657816,3341.5,3341.3,0.04949004]
[1732360379150,0.81657816,3341.5,3340.4,0.2976]
[1732360379472,0.81657816,3341.5,3340.3,0.8109]
[1732360379473,0.7866,3341.3,3340.5,0.04833966]
[1732360379677,0.81657816,3341.3,3340.3,0.8109]
[1732360379973,0.81657816,3341.3,3340.6,0.04827952]
[1732360380174,0.81657816,3341.3,3340.3,0.8109]
[1732360380348,0.81657816,3341.3,3340.7,0.04825937]
[1732360380552,0.81657816,3341.3,3340.3,0.8109]
[1732360380773,0.81657816,3341.3,3340.8,0.04817858]
[1732360381087,0.81657816,3341.3,3340.9,0.0480978]
[1732360381296,0.7866,3341.3,3340.4,3.0]
[1732360381602,0.7866,3341.3,3341.0,0.04805789]
[1732360381892,0.7866,3341.3,3341.1,0.04799733]
[1732360382089,0.7866,3341.3,3340.4,3.0]
[1732360382248,0.7866,3341.3,3341.2,0.04793632]
[1732360382452,0.7866,3341.3,3340.4,3.0]
[1732360382702,0.7866,3341.3,3341.2,0.04791611]
[1732360382849,0.7866,3341.3,3340.4,3.0]
[1732360383054,0.7866,3341.3,3341.2,0.04793632]
[1732360383395,0.7866,3341.3,3340.3,1.1085]
[1732360383782,0.7866,3341.3,3340.4,0.0484209]
[1732360384291,0.7866,3341.3,3340.4,3.0484209]
[1732360384852,0.7866,3341.3,3340.4,0.0484209]
[1732360385289,0.7866,3341.3,3340.4,3.0484209]
[1732360385800,0.7866,3341.3,3340.4,0.0484209]
[1732360386297,0.7988,3341.1,3340.4,3.0484209]
[1732360387357,0.02997816,3341.4,3340.4,3.0484209]
[1732360388069,0.02997816,3341.4,3340.4,0.0484209]
[1732360388272,0.57997816,3341.4,3339.9,0.8206]
[1732360388473,0.57997816,3341.4,3340.5,0.0467938]
[1732360388698,0.57997816,3341.4,3339.6,0.2976]
[1732360388874,0.57997816,3341.4,3340.6,0.04673322]
[1732360389052,0.57997816,3341.4,3339.4,0.8206]
[1732360389258,0.57997816,3341.4,3340.7,0.04666216]
[1732360389458,1.32621791,3341.4,3339.4,1.1182]
[1732360389694,0.57997816,3341.4,3340.8,0.0466218]
[1732360389868,0.57997816,3341.4,3339.4,1.1182]
[1732360390071,0.57997816,3341.4,3340.9,0.04656122]
[1732360390387,0.55,3341.2,3340.9,0.04656122]
[1732360390575,0.7988,3341.0,3339.9,0.8206]
[1732360390774,0.7988,3341.0,3339.9,1.17476874]
[1732360390991,0.7988,3341.0,3340.0,0.0471115]
[1732360391968,0.7988,3340.8,3340.0,0.0471115]
[1732360392286,0.7988,3340.6,3340.0,0.0471115]
[1732360392487,0.7988,3340.4,3339.7,0.8206]
[1732360392662,0.7988,3340.4,3340.1,0.04702613]
[1732360392861,0.7988,3340.4,3339.7,0.8206]
[1732360393063,0.7988,3340.4,3340.2,0.04700596]
[1732360393264,0.7988,3340.4,3339.7,0.8206]
[1732360393463,0.7988,3340.4,3340.3,0.04692515]
[1732360393660,0.7988,3340.4,3339.7,0.8206]
[1732360394062,0.02997816,3340.3,3339.8,0.0472075]
[1732360394300,0.02997816,3340.3,3339.5,3.2976]
[1732360394498,0.02997816,3340.3,3339.9,0.04718527]
[1732360394668,0.02997816,3340.3,3339.5,1.1182]
[1732360394865,0.02997816,3340.3,3340.0,0.04712467]
[1732360395078,0.02997816,3340.3,3339.5,4.1182]
[1732360395290,0.02997816,3340.3,3340.1,0.04706407]
[1732360395499,0.02997816,3340.3,3339.5,1.1182]
[1732360395782,0.82877816,3340.3,3340.2,0.04698325]
[1732360396421,0.82877816,3340.3,3340.2,0.04700347]
[1732360396594,0.82877816,3340.3,3339.5,4.1182]
[1732360396787,0.82877816,3340.3,3339.6,0.04736711]
[1732360396788,0.7988,3340.3,3339.6,0.04736711]
[1732360397911,0.7988,3340.3,3339.6,0.40153585]
[1732360398113,0.7988,3340.7,3339.7,1.17476874]
[1732360398312,0.7988,3340.7,3339.8,0.2976]
[1732360398513,0.7988,3340.7,3340.0,0.2976]
[1732360398925,0.7988,3340.7,3340.1,0.04707012]
[1732360399827,0.7988,3340.7,3339.8,0.2976]
[1732360400121,0.7988,3340.7,3339.9,0.04717066]
[1732360400889,0.7988,3340.6,3339.9,0.04717066]
[1732360401885,0.86097816,3340.5,3339.9,0.04717066]
[1732360402117,0.831,3340.5,3339.9,0.04717066]
[1732360403089,0.7988,3340.6,3340.0,1.45596874]
[1732360403297,0.7988,3340.6,3340.0,1.50307485]
[1732360403629,0.7988,3340.6,3340.2,0.2976]
[1732360403933,0.7988,3340.6,3340.3,0.04692432]
[1732360404736,0.7988,3340.6,3340.1,0.2976]
[1732360405028,0.7988,3340.6,3340.5,1.1076]
[1732360405201,0.7988,3340.6,3340.5,1.15434464]
[1732360406794,0.0988,3340.6,3340.5,1.15434464]
[1732360407232,0.02997816,3341.4,3340.5,1.15434464]
[1732360407394,0.7529,3341.3,3340.5,1.15434464]
[1732360407724,0.02997816,3341.2,3340.5,1.15434464]
[1732360407920,0.02997816,3341.2,3340.7,0.2976]
[1732360408430,0.02997816,3341.2,3340.8,0.04660404]
[1732360409034,0.7529,3341.3,3340.8,0.04660404]
[1732360409797,0.02997816,3341.2,3340.8,0.04660404]
[1732360409995,0.02997816,3341.2,3340.6,0.2976]
[1732360410234,0.02997816,3341.2,3340.7,0.34426461]
[1732360410649,0.7529,3341.3,3340.7,0.34426461]
[1732360411213,0.7529,3341.3,3340.7,0.04666461]
[1732360419218,0.7529,3341.3,3340.8,0.81]
[1732360419438,0.7529,3341.3,3340.9,0.04650216]
[1732360435351,0.02997816,3341.2,3340.9,0.04650216]
[1732360435533,0.8147,3341.1,3340.9,0.04650216]
[1732360435725,0.8147,3341.1,3340.4,3.2976]
[1732360435942,0.8147,3341.1,3341.0,0.04640996]
[1732360436164,0.97445782,3341.1,3340.4,3.2976]
[1732360436331,0.8147,3341.1,3341.0,0.04643017]
[1732360436534,0.8147,3341.1,3340.3,0.2976]
[1732360436729,0.8147,3341.1,3341.0,0.04638975]
[1732360437035,0.8147,3341.1,3341.0,0.04639843]
[1732360437366,0.8147,3341.1,3340.3,0.2976]
[1732360437662,0.8147,3341.1,3340.4,3.0]
[1732360437842,0.8147,3341.1,3340.5,0.0467013]
[1732360438170,0.8147,3341.1,3340.4,3.0]
[1732360438330,0.8147,3341.1,3340.6,0.0466444]
[1732360438652,0.8147,3341.1,3340.7,0.0466449]
[1732360438856,0.8147,3341.1,3340.5,0.7998]
[1732360439061,0.8147,3341.1,3340.8,0.04656367]
[1732360439254,0.8147,3341.1,3340.5,0.7998]
[1732360439456,0.8147,3341.1,3340.6,0.04666461]
[1732360443925,1.5151,3341.3,3340.6,0.04666461]
[1732360445269,0.7529,3341.3,3340.6,0.04666461]
[1732360445832,0.02997816,3341.2,3340.6,0.04666461]
[1732360446642,0.7529,3341.3,3340.6,0.04666461]
[1732360446846,0.02997816,3341.2,3340.6,0.04666461]
[1732360447579,0.7529,3341.3,3340.6,0.04666461]
[1732360447774,0.7529,3341.3,3340.6,0.34426461]
[1732360448544,0.02997816,3341.2,3340.6,0.34426461]
[1732360450446,0.02997816,3341.4,3340.6,0.34426461]
[1732360451272,0.7592,3341.5,3340.6,0.34426461]
[1732360452279,0.02997816,3341.4,3340.6,0.34426461]
[1732360452583,0.7592,3341.3,3340.6,0.34426461]
[1732360456553,0.78237816,3341.2,3340.6,0.04666461]
[1732360456857,0.78237816,3341.2,3340.7,0.04474465]
[1732360457087,0.78237816,3341.2,3340.2,0.2976]
[1732360457454,0.78237816,3341.2,3339.9,0.2976]
[1732360457653,0.78237816,3341.2,3340.2,0.2976]
[1732360458066,0.78237816,3341.2,3340.3,0.04495531]
[1732360458979,0.78237816,3341.2,3340.1,0.2976]
[1732360459153,0.78237816,3341.2,3340.4,0.04489478]
[1732360459356,0.78237816,3341.2,3340.1,0.2976]
[1732360459546,0.78237816,3341.2,3340.5,0.04483426]
[1732360459746,0.78237816,3341.2,3340.0,3.2976]
[1732360459946,0.78237816,3341.2,3340.6,0.04679431]
[1732360460169,0.78237816,3341.2,3340.0,3.2976]
[1732360460360,0.78237816,3341.2,3340.7,0.04673373]
[1732360460575,0.78237816,3341.2,3340.0,3.2976]
[1732360460888,0.78237816,3341.2,3340.8,0.04667315]
[1732360461185,0.78237816,3341.2,3340.0,0.2976]
[1732360461385,0.78237816,3341.2,3340.0,3.2976]
[1732360461583,0.78237816,3341.2,3340.1,0.04507639]
[1732360465899,0.78237816,3341.2,3339.5,1.056]
[1732360466061,0.78237816,3341.2,3340.2,0.04314875]
[1732360466259,0.78237816,3341.2,3339.5,1.056]
[1732360466466,0.78237816,3341.2,3340.3,0.04304783]
[1732360466695,0.78237816,3341.2,3339.7,0.2977]
[1732360466859,0.7825,3341.0,3339.7,0.2977]
[1732360467054,0.7825,3340.8,3340.4,0.04298729]
[1732360467290,0.7825,3340.6,3339.7,0.2977]
[1732360467462,0.7825,3340.4,3339.9,0.2977]
[1732360467661,0.02997816,3340.3,3339.9,0.2977]
[1732360467862,0.02997816,3340.3,3340.0,0.04326984]
[1732360468660,0.7825,3340.4,3340.0,0.04326984]
[1732360468863,0.7825,3340.4,3339.6,3.2977]
[1732360469203,0.7825,3340.4,3339.6,0.2977]
[1732360469497,0.7825,3340.4,3339.7,0.04341109]
[1732360471287,0.02997816,3340.3,3339.7,0.04341109]
[1732360471466,0.7825,3340.4,3339.7,0.04341109]
[1732360472799,0.7825,3340.4,3339.8,0.2977]
[1732360473008,0.7825,3340.4,3339.9,0.2977]
[1732360473421,0.7825,3340.4,3340.0,0.04324964]
[1732360473706,0.7825,3340.6,3340.0,0.80154964]
[1732360474092,0.7825,3341.8,3340.2,0.2977]
[1732360474302,0.7825,3341.8,3340.6,0.2977]
[1732360474473,0.93966782,3341.8,3340.6,0.2977]
[1732360474675,0.93966782,3341.8,3340.7,0.0428102]
[1732360475084,0.93966782,3341.8,3340.8,0.7583]
[1732360475704,0.93966782,3341.8,3340.9,0.04267391]
[1732360476078,0.93966782,3341.8,3340.9,0.34037391]
[1732360476419,0.1728846,3341.7,3340.9,0.34037391]
[1732360480407,0.7825,3341.8,3340.9,0.34037391]
[1732360482680,0.02997816,3341.7,3340.9,0.34037391]
[1732360483527,0.81247816,3341.8,3340.9,0.34037391]
[1732360484518,0.81247816,3341.8,3340.9,0.04267391]
[1732360484692,0.8133,3341.6,3340.9,0.04267391]
[1732360484893,0.02997816,3341.5,3340.6,0.2977]
[1732360485218,0.02997816,3341.5,3340.8,0.2977]
[1732360485434,0.02997816,3341.5,3341.0,0.2977]
[1732360485790,0.02997816,3341.5,3341.1,0.04469038]
[1732360486922,0.02997816,3341.5,3341.2,0.04246503]
[1732360487439,0.02997816,3341.5,3340.7,0.2977]
[1732360487734,0.02997816,3341.5,3340.9,0.2977]
[1732360487917,0.02997816,3341.5,3340.8,0.0448721]
[1732360488099,0.02997816,3341.5,3341.0,0.04475095]
[1732360488302,0.02997816,3341.5,3341.1,0.04468985]
[1732360488721,0.8133,3341.6,3340.7,0.2977]
[1732360488936,0.8133,3341.6,3341.2,0.04246449]
[1732360489157,0.8133,3341.6,3340.7,0.2977]
[1732360489439,0.8133,3341.6,3340.8,0.04487157]
[1732360489798,0.8133,3341.6,3340.5,0.65186874]
[1732360490100,0.8133,3341.6,3340.6,0.04499353]
[1732360490399,0.8133,3341.6,3340.7,0.2977]
[1732360490621,0.8133,3341.6,3340.8,0.04487236]
[1732360490795,0.8133,3341.6,3341.0,0.2977]
[1732360491003,0.8133,3341.6,3341.1,0.04469064]
[1732360492216,0.8133,3341.6,3340.7,0.2977]
[1732360492537,0.8133,3341.6,3340.8,0.04487236]
[1732360495200,0.8133,3341.6,3341.1,0.8477]
[1732360495407,0.7792,3341.9,3341.2,0.34257972]
[1732360498245,0.7792,3341.9,3341.4,0.2977]
[1732360498748,0.7792,3341.9,3341.5,0.04469801]
[1732360499837,0.7792,3341.9,3341.6,0.0446581]
[1732360500204,0.7792,3341.9,3341.4,0.2977]
[1732360500400,0.7792,3341.9,3341.5,0.04467823]
[1732360501140,0.7792,3341.9,3341.5,0.34237823]
[1732360502139,0.7792,3341.9,3341.5,0.04467823]
[1732360502437,0.7792,3341.9,3341.4,0.2977]
[1732360502629,0.7792,3341.9,3341.6,0.04431304]
[1732360502824,0.7792,3341.9,3341.5,0.55]
[1732360503025,0.7792,3341.9,3341.6,0.2977]
[1732360503247,0.7792,3341.9,3341.7,0.04427313]
[1732360504465,0.7792,3341.9,3341.4,0.2977]
[1732360504756,0.7792,3341.9,3341.8,0.0445428]
[1732360504916,0.7792,3341.9,3341.6,0.2977]
[1732360505115,0.7792,3341.9,3341.8,0.04458409]
[1732360505357,0.7792,3341.9,3341.7,0.04464465]
[1732360505529,0.7792,3341.9,3341.8,0.04404827]
[1732360506031,0.7792,3341.9,3341.4,0.2977]
[1732360506351,0.7792,3341.9,3341.6,0.2977]
[1732360506712,0.7792,3341.9,3341.7,0.04431434]
[1732360507721,0.7792,3341.9,3341.2,0.2977]
[1732360507927,0.7792,3341.9,3341.8,0.04415103]
[1732360508130,0.7792,3341.9,3341.4,0.2977]
[1732360508327,0.7592,3342.0,3341.4,0.2977]
[1732360508328,0.7592,3342.0,3341.8,0.04413082]
[1732360508553,0.7513,3342.2,3341.6,0.2977]
[1732360508775,0.7513,3342.2,3341.8,0.2977]
[1732360508987,0.7592,3342.3,3342.0,0.2977]
[1732360509265,0.7592,3342.3,3342.1,0.04396985]
[1732360509559,0.7513,3342.5,3342.2,0.2977]
[1732360509759,0.7592,3342.4,3342.2,0.2977]
[1732360509969,0.7592,3342.4,3342.3,0.0441373]
[1732360510652,0.7592,3342.4,3342.0,0.2977]
[1732360510855,0.7592,3342.4,3341.9,0.8223]
[1732360510856,0.7592,3342.4,3342.3,0.0441171]
[1732360511054,0.7592,3342.4,3342.2,0.2977]
[1732360511250,0.7592,3342.4,3342.3,0.0441171]
[1732360511564,1.571,3342.4,3342.3,0.0441171]
[1732360511860,0.9163,3342.4,3341.5,0.2977]
[1732360512065,0.8118,3342.3,3341.5,0.2977]
[1732360512271,0.8118,3342.3,3341.6,0.04454682]
[1732360512468,0.8118,3342.3,3341.7,0.2977]
[1732360512678,0.8118,3342.3,3341.7,0.34220647]
[1732360513961,0.8118,3342.3,3341.7,0.04450647]
[1732360514174,0.02997816,3342.2,3341.7,0.04450647]
[1732360514372,0.02997816,3342.2,3341.7,0.2977]
[1732360514667,0.8118,3342.1,3341.8,0.04446613]
[1732360515079,0.8118,3342.1,3341.7,0.2977]
[1732360515365,0.8118,3342.1,3341.9,0.04442709]
[1732360515572,0.8118,3342.1,3341.8,0.04448764]
[1732360515790,0.8118,3342.1,3342.0,0.04438676]
[1732360516079,0.8118,3342.1,3342.0,0.04436655]
[1732360516376,0.8118,3342.1,3341.7,0.2977]
[1732360516583,0.8118,3342.1,3342.0,0.04438676]
[1732360516877,0.8118,3342.1,3342.0,0.04436655]
[1732360517240,0.8118,3342.1,3341.7,0.2977]
[1732360517479,0.8118,3342.3,3341.9,0.2977]
[1732360517858,0.8118,3342.3,3342.0,0.04436655]
[1732360518942,0.8118,3342.3,3341.7,0.2977]
[1732360519225,0.7592,3342.4,3342.1,0.04434642]
[1732360519354,0.7592,3342.4,3342.1,0.2977]
[1732360519554,0.7592,3342.4,3342.2,0.59424547]
[1732360519771,0.7592,3342.4,3342.3,0.8477]
[1732360520154,0.7592,3342.4,3342.3,0.89186429]
[1732360521192,0.8118,3342.9,3342.4,0.8477]
[1732360521477,0.8118,3342.8,3342.5,0.04404323]
[1732360521663,0.8118,3342.8,3342.5,0.34174323]
[1732360522045,0.8118,3342.8,3342.6,0.55]
[1732360522247,0.8118,3342.8,3342.7,0.89161007]
[1732360526888,0.8032,3343.4,3342.7,0.89161007]
[1732360527084,0.8118,3343.3,3342.7,0.89161007]
[1732360528772,0.8118,3343.3,3342.8,0.55]
[1732360529019,0.8118,3343.3,3342.9,0.2977]
[1732360529244,0.8118,3343.3,3342.9,0.34128311]
[1732360530211,0.02997816,3343.2,3342.9,0.04358311]
[1732360530379,0.8032,3343.1,3342.5,0.2977]
[1732360530596,0.8032,3343.1,3342.7,0.2977]
[1732360530792,0.8032,3343.1,3342.8,0.0416146]
[1732360531137,0.02997816,3343.0,3342.7,0.2977]
[1732360531313,0.02997816,3343.0,3342.9,0.04159983]
[1732360531496,0.02997816,3343.0,3342.8,0.04164013]
[1732360531698,0.02997816,3343.0,3342.9,0.04159983]
[1732360532136,0.02997816,3343.0,3342.5,0.2977]